bitfinex-derivatives/quotes_SOLF0:USTF0_20250113
["timestamp","ask_amount","ask_price","bid_price","bid_amount"]
[1736790199620,1.6381,176.49,176.4,2.8356]
[1736790200118,1.6381,176.49,176.38,1.5611]
[1736790200323,1.5863,176.48,176.38,4.3971]
[1736790200927,22.19817241,176.47,176.37,2.8362]
[1736790201117,22.19817241,176.47,176.35,7.9093]
[1736790201519,1.5863,176.48,176.35,7.9093]
[1736790201920,1.6381,176.49,176.37,22.19817241]
[1736790202122,28.43817241,176.53,176.43,2.8352]
[1736790202323,28.43817241,176.53,176.37,22.19817241]
[1736790202524,22.19817241,176.5,176.37,2.8362]
[1736790202726,22.19817241,176.47,176.37,2.8362]
[1736790202926,3.3191,176.46,176.37,2.8362]
[1736790203333,2.8357,176.41,176.37,2.8362]
[1736790203628,3.3191,176.46,176.35,1.6693]
[1736790203829,2.8355,176.42,176.35,1.6693]
[1736790204025,3.3191,176.46,176.35,1.6693]
[1736790204325,3.3191,176.46,176.37,2.8361]
[1736790204527,2.8355,176.41,176.37,2.8361]
[1736790205426,2.8357,176.4,176.36,2.8363]
[1736790205630,22.19817241,176.44,176.32,1.6836]
[1736790205827,22.19817241,176.41,176.26,3.37842019]
[1736790206034,2.8369,176.33,176.29,9.0974]
[1736790206525,22.19817241,176.41,176.29,9.0974]
[1736790206727,2.8367,176.34,176.29,9.0974]
[1736790206927,2.8367,176.34,176.29,2.8374]
[1736790207131,22.19817241,176.41,176.28,2.8376]
[1736790207430,22.19817241,176.38,176.28,2.8376]
[1736790207931,22.19817241,176.38,176.27,4.4872]
[1736790208129,22.19817241,176.38,176.27,1.6494]
[1736790208329,2.8373,176.31,176.27,1.6494]
[1736790208729,3.1888,176.37,176.27,1.6494]
[1736790208929,2.8368,176.34,176.29,2.8373]
[1736790209134,3.1888,176.37,176.27,1.6494]
[1736790209633,3.1888,176.37,176.22,22.19817241]
[1736790209825,3.1888,176.37,176.23,103.54]
[1736790210026,4.8954,176.37,176.23,103.54]
[1736790210427,2.8374,176.3,176.25,2.838]
[1736790211327,2.8375,176.29,176.23,97.28]
[1736790211527,22.19817241,176.35,176.23,97.28]
[1736790211933,2.8376,176.29,176.24,2.8383]
[1736790212134,22.19817241,176.35,176.23,97.28]
[1736790212836,2.8371,176.32,176.26,2.8379]
[1736790213037,22.19817241,176.35,176.23,97.28]
[1736790213237,4.8954,176.37,176.23,97.28]
[1736790213439,4.8954,176.37,176.28,2.8376]
[1736790214135,4.8954,176.37,176.29,2.8374]
[1736790214838,2.837,176.32,176.29,2.8374]
[1736790215237,22.19817241,176.34,176.23,97.28]
[1736790215742,22.19817241,176.34,176.2,6.28]
[1736790215942,2.838,176.26,176.22,2.8385]
[1736790216732,2.8373,176.3,176.2,6.28]
[1736790216938,27.09357241,176.37,176.22,22.19817241]
[1736790217640,22.19817241,176.34,176.2,6.28]
[1736790218437,2.8379,176.27,176.22,2.8385]
[1736790218947,2.8379,176.27,176.2,6.28]
[1736790219244,27.09357241,176.37,176.22,22.19817241]
[1736790219736,2.837,176.32,176.22,22.19817241]
[1736790220442,2.837,176.32,176.27,2.8377]
[1736790221142,27.09357241,176.37,176.22,22.19817241]
[1736790221348,22.19817241,176.34,176.19,27.19467241]
[1736790221548,22.19817241,176.31,176.19,4.9965]
[1736790221845,2.8385,176.23,176.19,7.8354]
[1736790222243,22.19817241,176.28,176.14,3.2375]
[1736790222550,2.8388,176.21,176.16,2.8395]
[1736790224548,25.48207241,176.27,176.14,4.8433]
[1736790224743,22.19817241,176.24,176.13,103.66]
[1736790225049,22.19817241,176.24,176.13,97.34]
[1736790225749,11.2243,176.27,176.13,97.34]
[1736790225952,2.8386,176.23,176.14,4.8889]
[1736790226143,4.8843,176.27,176.14,4.8889]
[1736790227245,2.8384,176.24,176.16,2.8394]
[1736790227451,3.2839,176.27,176.16,6.34]
[1736790227749,2.8384,176.24,176.19,2.8389]
[1736790228340,3.2839,176.27,176.19,2.8389]
[1736790228544,2.8388,176.21,176.15,28.53817241]
[1736790229048,3.2839,176.27,176.15,28.53817241]
[1736790229251,2.8386,176.22,176.17,2.8394]
[1736790230347,3.2839,176.27,176.15,28.53817241]
[1736790231240,3.2839,176.27,176.15,6.34]
[1736790232140,2.8386,176.23,176.18,2.8391]
[1736790232541,3.2839,176.27,176.15,28.53817241]
[1736790233546,2.8384,176.24,176.2,2.8389]
[1736790233750,3.2839,176.27,176.2,2.8389]
[1736790234253,2.8382,176.25,176.2,2.8389]
[1736790234549,25.50967241,176.31,176.2,2.8389]
[1736790234751,2.8382,176.25,176.2,2.8389]
[1736790235153,2.8385,176.23,176.15,28.53817241]
[1736790235647,25.50967241,176.31,176.15,28.53817241]
[1736790235648,25.50967241,176.31,176.19,2.839]
[1736790235951,2.8383,176.24,176.15,28.53817241]
[1736790236749,2.8383,176.24,176.19,2.839]
[1736790237853,2.8385,176.23,176.19,2.839]
[1736790239956,2.8393,176.18,176.14,7.7287]
[1736790240161,2.8393,176.18,176.14,6.0746]
[1736790240457,2.8389,176.21,176.16,2.8394]
[1736790240756,2.8389,176.21,176.14,3.2348]
[1736790241449,2.8389,176.21,176.16,2.8396]
[1736790242159,2.8389,176.21,176.17,2.8394]
[1736790242651,28.51817241,176.27,176.14,3.2348]
[1736790242652,2.8386,176.23,176.2,2.8389]
[1736790242859,25.50967241,176.31,176.18,28.51817241]
[1736790243151,156.3314499,176.33,176.21,22.19817241]
[1736790243353,156.3314499,176.33,176.22,3.4098]
[1736790243556,22.19817241,176.37,176.22,3.4098]
[1736790243754,2.8383,176.24,176.22,3.4098]
[1736790244065,22.19817241,176.28,176.14,3.4098]
[1736790244363,22.19817241,176.28,176.16,6.34]
[1736790244554,4.8687,176.27,176.16,6.34]
[1736790244752,2.8391,176.2,176.16,6.34]
[1736790245953,2.8392,176.19,176.16,6.34]
[1736790246452,22.19817241,176.25,176.13,103.68]
[1736790246758,2.8393,176.18,176.13,103.68]
[1736790246959,22.19817241,176.25,176.13,97.34]
[1736790247161,22.19817241,176.22,176.13,97.34]
[1736790247762,2.8394,176.18,176.13,97.34]
[1736790248269,22.19817241,176.22,176.13,97.34]
[1736790249062,2.8392,176.19,176.14,2.8399]
[1736790249270,22.19817241,176.22,176.13,97.34]
[1736790249767,22.19817241,176.22,176.13,100.1799]
[1736790249768,2.8393,176.18,176.13,100.1799]
[1736790249957,22.19817241,176.22,176.13,100.1799]
[1736790250165,22.19817241,176.19,176.09,6.34]
[1736790250462,22.19817241,176.19,176.05,7.9611]
[1736790250669,22.19817241,176.16,176.05,7.9611]
[1736790250865,2.8402,176.13,176.08,2.8407]
[1736790252372,22.19817241,176.16,176.03,100.6968]
[1736790252670,2.8407,176.1,176.05,2.8413]
[1736790252962,22.19817241,176.16,176.05,2.8413]
[1736790253468,2.8408,176.09,176.05,2.8413]
[1736790254070,22.19817241,176.16,176.03,107.0168]
[1736790254666,3.338,176.18,176.04,22.19817241]
[1736790254865,2.8397,176.15,176.04,22.19817241]
[1736790255062,22.19817241,176.22,176.07,22.19817241]
[1736790255366,3.343,176.23,176.1,22.19817241]
[1736790255670,3.343,176.23,176.11,7.889]
[1736790256767,3.343,176.23,176.12,1.6353]
[1736790257672,2.839,176.2,176.14,2.8397]
[1736790257868,3.343,176.23,176.12,1.6353]
[1736790258065,3.343,176.23,176.13,22.19817241]
[1736790258362,2.8386,176.22,176.17,2.8393]
[1736790258561,25.55677241,176.28,176.17,2.8393]
[1736790258771,22.19817241,176.25,176.12,1.6353]
[1736790259370,22.19817241,176.25,176.15,2.8396]
[1736790259565,22.19817241,176.25,176.12,1.6353]
[1736790259771,3.3586,176.28,176.13,22.19817241]
[1736790259772,25.55677241,176.28,176.13,22.19817241]
[1736790260072,2.8384,176.24,176.13,22.19817241]
[1736790260265,25.55677241,176.28,176.13,22.19817241]
[1736790260467,2.8388,176.21,176.13,22.19817241]
[1736790261271,2.8388,176.21,176.16,2.8394]
[1736790261971,2.8388,176.21,176.17,2.8394]
[1736790264373,25.55677241,176.28,176.17,2.8394]
[1736790264568,2.8386,176.22,176.17,2.8394]
[1736790268077,2.8386,176.22,176.12,1.6353]
[1736790268271,2.8386,176.22,176.18,2.8392]
[1736790268877,2.8383,176.24,176.2,2.8389]
[1736790269278,2.8383,176.24,176.13,22.19817241]
[1736790269683,2.8383,176.24,176.19,2.839]
[1736790270373,2.8383,176.24,176.14,13.92351838]
[1736790270579,2.8383,176.24,176.2,2.8389]
[1736790272176,2.8385,176.23,176.2,2.8389]
[1736790272383,13.92351838,176.26,176.18,2.8391]
[1736790272683,2.8387,176.22,176.14,13.92351838]
[1736790273183,2.8387,176.22,176.18,2.8391]
[1736790273481,2.8385,176.23,176.14,13.92351838]
[1736790274386,2.8385,176.23,176.19,2.839]
[1736790275178,2.8387,176.22,176.18,2.8392]
[1736790275381,13.92351838,176.23,176.12,1.6353]
[1736790275580,13.92351838,176.2,176.11,1.569]
[1736790275878,2.8395,176.17,176.13,2.84]
[1736790276082,13.92351838,176.2,176.1,6.28]
[1736790276280,13.92351838,176.25,176.16,2.8394]
[1736790276480,13.92351838,176.25,176.14,13.92351838]
[1736790276983,13.92351838,176.25,176.17,2.8393]
[1736790278184,13.92351838,176.25,176.18,2.8392]
[1736790279284,2.8389,176.21,176.18,2.8392]
[1736790280582,2.8389,176.21,176.14,13.92351838]
[1736790280789,13.92351838,176.25,176.14,13.92351838]
[1736790281095,13.92351838,176.25,176.15,1.5657]
[1736790281391,17.28211838,176.28,176.17,13.92351838]
[1736790281585,17.28211838,176.28,176.18,6.28]
[1736790281981,2.8385,176.23,176.2,2.8389]
[1736790282189,17.28211838,176.28,176.18,6.28]
[1736790282385,13.92351838,176.25,176.18,6.28]
[1736790282689,2.8386,176.22,176.19,2.8389]
[1736790288396,13.92351838,176.25,176.1,97.42]
[1736790288596,13.92351838,176.22,176.1,106.9571]
[1736790288897,13.92351838,176.19,176.1,106.9771]
[1736790289288,13.92351838,176.19,176.1,97.42]
[1736790289801,2.8401,176.13,176.1,97.42]
[1736790289994,13.92351838,176.16,176.06,7.9038]
[1736790290195,2.8403,176.12,176.07,2.8409]
[1736790290396,2.8403,176.12,176.06,7.9038]
[1736790290796,13.92351838,176.13,176.01,23.59913892]
[1736790291402,2.8412,176.07,176.02,2.8418]
[1736790292196,2.8405,176.11,176.03,13.92351838]
[1736790292398,3.2459,176.18,176.06,13.92351838]
[1736790292399,13.92351838,176.17,176.06,13.92351838]
[1736790292890,2.8402,176.13,176.07,2.8409]
[1736790293601,2.8405,176.1,176.05,2.8412]
[1736790293798,13.92351838,176.14,176.01,13.92351838]
[1736790294200,2.8406,176.1,176.05,2.8412]
[1736790294508,13.92351838,176.14,176.01,13.92351838]
[1736790295303,2.8405,176.1,176.05,2.8412]
[1736790296402,2.8404,176.11,176.06,2.841]
[1736790296601,13.92351838,176.14,176.06,6.3]
[1736790298104,2.8402,176.13,176.08,2.8408]
[1736790299209,13.92351838,176.17,176.07,13.92351838]
[1736790299508,2.8388,176.21,176.17,2.8394]
[1736790299709,13.92351838,176.23,176.17,2.8394]
[1736790299911,17.17771838,176.26,176.13,20.20351838]
[1736790300108,2.8383,176.25,176.2,2.8388]
[1736790300311,17.17771838,176.26,176.16,13.92351838]
[1736790300604,2.8386,176.22,176.13,20.20351838]
[1736790301307,2.8386,176.22,176.15,2.8396]
[1736790301507,2.8386,176.22,176.13,20.20351838]
[1736790301907,2.8386,176.22,176.17,2.8393]
[1736790302411,2.8391,176.19,176.14,2.8399]
[1736790302604,13.92351838,176.23,176.13,6.28]
[1736790302811,3.2542,176.26,176.08,13.92351838]
[1736790302812,13.92351838,176.2,176.08,13.92351838]
[1736790303008,6.3,176.24,176.08,13.92351838]
[1736790303204,13.92351838,176.22,176.11,13.92351838]
[1736790303406,2.8389,176.21,176.11,13.92351838]
[1736790303606,13.92351838,176.25,176.14,13.92351838]
[1736790303806,13.92351838,176.25,176.14,20.22351838]
[1736790304722,2.8386,176.23,176.18,2.8392]
[1736790305417,2.8386,176.22,176.18,2.8392]
[1736790305614,13.92351838,176.25,176.18,2.8392]
[1736790305922,2.8386,176.23,176.18,2.8392]
[1736790306521,13.92351838,176.28,176.17,13.92351838]
[1736790306923,13.92351838,176.31,176.2,13.92351838]
[1736790307119,13.92351838,176.34,176.23,13.92351838]
[1736790307418,156.3314499,176.35,176.26,13.92351838]
[1736790308125,2.8368,176.34,176.28,2.8375]
[1736790308318,13.92351838,176.37,176.29,6.3]
[1736790309324,3.2587,176.38,176.31,2.837]
[1736790309518,1.6509,176.38,176.31,2.837]
[1736790309822,2.8362,176.37,176.32,2.837]
[1736790310225,13.92351838,176.37,176.29,6.3]
[1736790310423,1.6581,176.44,176.29,20.22351838]
[1736790310623,1.6581,176.44,176.32,13.92351838]
[1736790310926,13.92351838,176.42,176.32,13.92351838]
[1736790311124,1.6581,176.44,176.32,13.92351838]
[1736790311125,15.58161838,176.44,176.32,13.92351838]
[1736790311625,13.92351838,176.41,176.29,6.3]
[1736790311930,13.92351838,176.38,176.29,6.3]
[1736790312226,13.92351838,176.38,176.3,2.8373]
[1736790312227,2.8366,176.35,176.3,2.8373]
[1736790312429,13.92351838,176.35,176.24,11.169]
[1736790312726,2.8376,176.29,176.22,2.8385]
[1736790312926,13.92351838,176.29,176.22,2.8385]
[1736790313132,13.92351838,176.29,176.2,111.36351838]
[1736790313429,13.92351838,176.32,176.2,111.36351838]
[1736790314224,1.7192,176.34,176.23,13.92351838]
[1736790314423,1.5921,176.37,176.26,13.92351838]
[1736790314624,1.5921,176.37,176.26,20.28351838]
[1736790314922,2.8365,176.36,176.3,2.8373]
[1736790315226,1.5921,176.37,176.3,2.8373]
[1736790316124,1.5921,176.37,176.26,20.28351838]
[1736790316431,13.92351838,176.38,176.26,20.28351838]
[1736790317130,13.92351838,176.38,176.29,13.92351838]
[1736790317328,13.92351838,176.41,176.32,13.92351838]
[1736790317623,1.573,176.42,176.36,2.8362]
[1736790317823,1.573,176.42,176.33,7.9248]
[1736790318023,13.92351838,176.41,176.33,7.9248]
[1736790318425,13.92351838,176.44,176.33,7.9248]
[1736790318730,13.92351838,176.44,176.34,1.6795]
[1736790319026,13.92351838,176.5,176.38,13.92351838]
[1736790319228,13.92351838,176.53,176.41,13.92351838]
[1736790319530,13.92351838,176.53,176.41,20.28351838]
[1736790319930,13.92351838,176.53,176.44,2.835]
[1736790320524,2.8342,176.5,176.44,2.835]
[1736790320722,13.92351838,176.53,176.44,2.835]
[1736790320926,13.92351838,176.53,176.42,1.5848]
[1736790321429,22.20935895,176.55,176.42,3.2505]
[1736790321728,2.8341,176.5,176.45,2.8349]
[1736790321928,22.20935895,176.55,176.42,3.2505]
[1736790322128,2.8339,176.52,176.43,1.7264]
[1736790322525,22.20935895,176.55,176.43,1.7264]
[1736790322731,2.834,176.51,176.46,2.8346]
[1736790323432,22.20935895,176.55,176.43,1.7264]
[1736790323626,22.20935895,176.52,176.36,22.20935895]
[1736790323828,2.8347,176.47,176.41,2.8354]
[1736790324035,22.20935895,176.55,176.39,22.20935895]
[1736790324534,22.20935895,176.52,176.38,6.34]
[1736790324930,2.8347,176.47,176.41,2.8355]
[1736790325323,22.20935895,176.52,176.38,6.34]
[1736790325732,22.20935895,176.55,176.39,22.20935895]
[1736790325922,22.20935895,176.55,176.42,22.20935895]
[1736790326126,3.3234,176.56,176.45,22.20935895]
[1736790326330,3.3234,176.56,176.46,11.431]
[1736790327235,2.8336,176.53,176.47,2.8345]
[1736790327429,3.3234,176.56,176.46,11.431]
[1736790327736,22.20935895,176.61,176.46,11.431]
[1736790327931,2.833,176.58,176.52,2.8337]
[1736790328235,22.20935895,176.61,176.48,22.20935895]
[1736790328527,2.833,176.58,176.48,22.20935895]
[1736790329030,22.20935895,176.61,176.48,22.20935895]
[1736790329224,22.20935895,176.61,176.46,11.431]
[1736790329429,22.20935895,176.58,176.46,11.431]
[1736790329931,2.8338,176.53,176.48,2.8343]
[1736790330238,22.20935895,176.55,176.46,9.7179]
[1736790330425,22.20935895,176.58,176.46,9.7179]
[1736790330625,22.20935895,176.61,176.46,9.7179]
[1736790330834,3.3424,176.63,176.46,9.7179]
[1736790330835,3.3424,176.63,176.5,22.20935895]
[1736790331433,2.8321,176.63,176.53,22.20935895]
[1736790331634,2.8321,176.63,176.54,8.0447]
[1736790331827,22.20935895,176.67,176.54,8.0447]
[1736790332033,2.832,176.64,176.56,2.8331]
[1736790332235,22.20935895,176.67,176.56,2.8331]
[1736790332538,22.20935895,176.67,176.54,8.0447]
[1736790332739,1.7299,176.69,176.55,1.5607]
[1736790333640,1.7299,176.69,176.56,22.20935895]
[1736790333831,1.7037,176.71,176.62,2.8322]
[1736790333832,2.8313,176.68,176.62,2.8322]
[1736790334037,1.7037,176.71,176.61,6.36]
[1736790334239,1.7037,176.71,176.62,1.5942]
[1736790334441,2.8309,176.7,176.64,2.8317]
[1736790335240,2.8309,176.7,176.62,1.5942]
[1736790335537,23.85505895,176.76,176.62,23.80355895]
[1736790335738,1.6457,176.76,176.62,23.80355895]
[1736790336741,2.8306,176.73,176.67,2.8313]
[1736790336939,22.20935895,176.73,176.62,1.5942]
[1736790337341,2.8309,176.7,176.62,1.5942]
[1736790337543,23.85505895,176.76,176.62,1.5942]
[1736790337738,2.8307,176.72,176.66,2.8314]
[1736790337942,23.85505895,176.76,176.62,1.5942]
[1736790338249,2.8306,176.72,176.63,2.8319]
[1736790338444,23.85505895,176.76,176.62,1.5942]
[1736790339149,22.20935895,176.73,176.62,7.9542]
[1736790339346,22.20935895,176.73,176.56,1.5935]
[1736790339347,22.20935895,176.73,176.59,6.36]
[1736790339543,1.6246,176.72,176.59,6.36]
[1736790339744,22.20935895,176.7,176.59,6.36]
[1736790340043,2.8318,176.65,176.59,9.1926]
[1736790340442,22.20935895,176.7,176.59,9.1926]
[1736790340849,22.20935895,176.7,176.62,2.8321]
[1736790341046,1.6246,176.72,176.59,6.36]
[1736790341242,23.85505895,176.76,176.61,22.20935895]
[1736790341442,23.85505895,176.76,176.67,2.8313]
[1736790341750,23.85505895,176.76,176.61,22.20935895]
[1736790341948,23.85505895,176.76,176.66,2.8315]
[1736790342244,23.85505895,176.76,176.61,22.20935895]
[1736790342547,22.20935895,176.73,176.61,2.8322]
[1736790342752,2.8316,176.66,176.61,2.8322]
[1736790343844,2.8314,176.67,176.61,2.8322]
[1736790344042,22.20935895,176.73,176.59,6.36]
[1736790344248,22.20935895,176.7,176.59,6.36]
[1736790344444,2.8318,176.65,176.59,6.36]
[1736790344648,1.631,176.69,176.57,1.6057]
[1736790344849,22.20935895,176.67,176.56,7.9535]
[1736790345256,22.20935895,176.67,176.56,6.36]
[1736790345853,22.20935895,176.67,176.53,3.3225]
[1736790346046,22.20935895,176.64,176.5,1.6853]
[1736790346251,22.20935895,176.64,176.52,6.38]
[1736790347049,2.8327,176.6,176.55,2.8332]
[1736790347448,22.20935895,176.64,176.55,2.8332]
[1736790348243,22.20935895,176.64,176.52,6.38]
[1736790348651,22.20935895,176.61,176.5,9.7593]
[1736790348948,1.5811,176.6,176.49,97.28]
[1736790349154,3.296,176.6,176.49,97.28]
[1736790349454,1.5811,176.6,176.49,97.28]
[1736790349748,6.36,176.65,176.51,22.20935895]
[1736790350053,162.7322316,176.77,176.57,22.20935895]
[1736790350251,1.5917,176.72,176.6,22.20935895]
[1736790350453,1.5917,176.72,176.61,8.0469]
[1736790352150,2.8312,176.69,176.64,2.8318]
[1736790352346,1.5917,176.72,176.61,8.0469]
[1736790352547,23.80105895,176.72,176.61,6.36]
[1736790353052,2.8314,176.68,176.63,2.832]
[1736790353246,1.5917,176.72,176.61,6.36]
[1736790353848,1.5917,176.72,176.61,7.9285]
[1736790354049,2.8311,176.69,176.61,7.9285]
[1736790355045,2.8311,176.69,176.64,2.8317]
[1736790355957,2.8312,176.68,176.63,2.832]
[1736790356162,2.8312,176.68,176.61,7.9285]
[1736790356455,2.8312,176.68,176.63,2.832]
[1736790358159,2.8317,176.66,176.61,10.7608]
[1736790358358,22.20935895,176.7,176.61,6.36]
[1736790358862,22.20935895,176.67,176.56,6.32]
[1736790359061,1.7296,176.66,176.56,6.32]
[1736790359262,2.8316,176.66,176.6,2.8325]
[1736790359461,22.20935895,176.7,176.6,2.8325]
[1736790359961,22.20935895,176.7,176.56,6.32]
[1736790360557,22.20935895,176.67,176.56,6.32]
[1736790360963,1.5849,176.66,176.56,6.32]
[1736790361161,1.5849,176.66,176.58,2.8328]
[1736790362362,1.5849,176.66,176.56,6.32]
[1736790362561,22.20935895,176.64,176.52,9.5937]
[1736790362757,1.5849,176.66,176.49,97.28]
[1736790362758,22.20935895,176.61,176.49,97.28]
[1736790362952,1.607,176.6,176.49,97.28]
[1736790363961,2.8336,176.53,176.49,100.1143]
[1736790364155,1.607,176.6,176.49,97.28]
[1736790364959,2.8335,176.54,176.5,2.834]
[1736790366000,1.607,176.6,176.49,97.28]
[1736790367657,2.8335,176.54,176.5,2.8341]
[1736790368867,1.607,176.6,176.49,97.28]
[1736790369068,2.8337,176.53,176.49,100.1142]
[1736790370073,22.20935895,176.58,176.48,19.93223]
[1736790370265,1.607,176.6,176.48,19.93223]
[1736790370266,22.20935895,176.55,176.48,19.93223]
[1736790370462,1.6621,176.54,176.48,19.93223]
[1736790370965,1.607,176.6,176.48,26.23223]
[1736790371165,1.6926,176.63,176.51,22.20935895]
[1736790371367,1.6926,176.63,176.54,22.20935895]
[1736790371768,2.8324,176.61,176.56,2.833]
[1736790371968,1.6926,176.63,176.55,6.3]
[1736790372171,1.7093,176.66,176.55,6.3]
[1736790372370,2.8321,176.63,176.58,2.8327]
[1736790372571,1.7093,176.66,176.55,6.3]
[1736790373476,22.20935895,176.64,176.52,7.8567]
[1736790373676,22.20935895,176.61,176.52,6.28]
[1736790373871,2.8328,176.59,176.52,6.28]
[1736790374176,22.20935895,176.61,176.52,6.28]
[1736790374373,2.8334,176.55,176.52,6.28]
[1736790374676,22.20935895,176.61,176.52,6.28]
[1736790375074,2.8334,176.55,176.52,6.28]
[1736790375781,2.8334,176.55,176.5,2.834]
[1736790376681,1.6736,176.6,176.49,9.5647]
[1736790376880,2.833,176.57,176.52,2.8337]
[1736790377081,1.6736,176.6,176.49,9.5647]
[1736790377483,2.8333,176.56,176.51,2.8338]
[1736790377682,1.6736,176.6,176.49,9.5647]
[1736790377883,1.7093,176.66,176.52,22.20935895]
[1736790378080,2.8318,176.65,176.6,2.8325]
[1736790378279,2.8318,176.65,176.58,28.48935895]
[1736790378582,157.9428316,176.71,176.61,22.20935895]
[1736790378781,156.3722316,176.71,176.61,22.20935895]
[1736790378981,234.5583474,176.75,176.61,22.20935895]
[1736790378982,1.6061,176.75,176.61,22.20935895]
[1736790379786,1.6061,176.75,176.64,22.20935895]
[1736790379985,22.20935895,176.82,176.67,22.20935895]
[1736790380183,2.8294,176.8,176.74,2.8302]
[1736790380387,198.6927895,176.84,176.74,1.6406]
[1736790380688,3.2275,176.84,176.75,6.3]
[1736790381088,2.8292,176.81,176.75,9.1301]
[1736790381294,3.2275,176.84,176.75,9.1301]
[1736790381791,2.8289,176.83,176.75,6.3]
[1736790382090,2.8289,176.83,176.77,2.8298]
[1736790382290,22.20935895,176.89,176.75,6.3]
[1736790384587,2.8288,176.83,176.76,2.8298]
[1736790384788,2.8288,176.83,176.75,6.3]
[1736790385187,2.8288,176.83,176.77,2.8298]
[1736790386188,22.20935895,176.89,176.75,6.3]
[1736790386388,22.20935895,176.86,176.75,6.3]
[1736790386981,2.8296,176.79,176.75,6.3]
[1736790387183,22.20935895,176.83,176.69,6.26]
[1736790387383,3.3337,176.82,176.69,7.9873]
[1736790387590,2.83,176.76,176.71,2.8307]
[1736790388591,22.20935895,176.77,176.67,97.2]
[1736790388987,22.20935895,176.8,176.67,97.2]
[1736790389388,2.8299,176.77,176.7,2.8309]
[1736790389591,22.20935895,176.8,176.7,2.8309]
[1736790389791,22.20935895,176.8,176.67,97.2]
[1736790389990,2.8299,176.77,176.68,2.8311]
[1736790390191,22.20935895,176.8,176.67,97.2]
[1736790391091,2.8304,176.74,176.69,2.8309]
[1736790391394,22.20935895,176.8,176.69,2.8309]
[1736790391890,22.20935895,176.8,176.67,97.2]
[1736790392294,1.6649,176.81,176.67,119.40935895]
[1736790392587,22.20935895,176.86,176.75,2.83]
[1736790392781,22.20935895,176.86,176.73,6.26]
[1736790392984,22.20935895,176.89,176.74,23.77205895]
[1736790393186,4.8005,176.9,176.74,23.77205895]
[1736790393385,4.8005,176.9,176.8,2.8292]
[1736790393590,3.2345,176.9,176.8,6.26]
[1736790393997,2.8286,176.85,176.8,9.0893]
[1736790394186,3.2345,176.9,176.8,9.0893]
[1736790394590,3.2345,176.9,176.8,6.26]
[1736790395195,22.20935895,176.89,176.76,6.26]
[1736790395396,3.2345,176.9,176.76,6.26]
[1736790395587,2.8287,176.84,176.8,2.8293]
[1736790397091,2.829,176.82,176.77,25.03905895]
[1736790397295,22.20935895,176.87,176.74,1.5627]
[1736790397497,22.20935895,176.87,176.74,23.77205895]
[1736790397691,3.2345,176.9,176.74,23.77205895]
[1736790397892,3.2345,176.9,176.79,2.8293]
[1736790398293,2.8287,176.84,176.79,2.8293]
[1736790398690,3.2345,176.9,176.74,23.77205895]
[1736790399298,2.8286,176.85,176.79,2.8294]
[1736790399500,22.20935895,176.89,176.74,23.77205895]
[1736790399899,22.20935895,176.86,176.74,1.5627]
[1736790400288,22.20935895,176.83,176.74,1.5627]
[1736790400494,2.8301,176.75,176.72,6.26]
[1736790400696,22.20935895,176.8,176.71,1.5823]
[1736790401199,22.20935895,176.8,176.68,7.9825]
[1736790401593,22.20935895,176.8,176.69,2.831]
[1736790401797,22.20935895,176.8,176.68,7.9825]
[1736790402190,3.2161,176.79,176.68,7.9825]
[1736790403497,2.83,176.76,176.7,2.8309]
[1736790403696,22.20935895,176.83,176.7,22.20935895]
[1736790403897,6.26,176.86,176.7,22.20935895]
[1736790403898,3.2099,176.85,176.7,22.20935895]
[1736790404095,3.2099,176.85,176.74,2.8302]
[1736790404300,3.2099,176.85,176.7,22.20935895]
[1736790404500,22.20935895,176.83,176.7,22.20935895]
[1736790404805,22.20935895,176.83,176.68,7.9825]